Cogmind - Beta 9.3 @@@ ROGUE MODE // 2019.12.20 @ 01:33:48 // Winter2019/RPGLIKE Player: cptwinky Result: Destroyed by H-66 Slayer with Gauss Rifle Performance ------------- Evolutions (5) 2500 Regions Visited (7) 1400 Robots Destroyed (5) 25 Value Destroyed (96) 96 Prototype IDs (1) 20 Alien Tech Used (0) 0 Bonus (200) 200 TOTAL SCORE: 4241 Bonus ------- Entered Garrisons 200 Cogmind --------- Core Integrity 0/900 Matter 280/300 Energy 100/100 System Corruption 0% Temperature Cool (0) Movement Flying (40) Location -5/Factory Parts ------- > --- POWER (1) -------- (None) > --- PROPULSION (1) --- Biomechanical Wings > --- UTILITY (1) ------ Improved Maneuvering Thrusters > --- WEAPON (1) ------- Power Sword > --- INVENTORY (0) ---- (None) Peak State ------------ > --- POWER ------------ (None) > --- PROPULSION ------- Biomechanical Wings > --- UTILITY ---------- Improved Maneuvering Thrusters > --- WEAPON ----------- Power Sword > --- INVENTORY -------- (None) [Rating: 16] Favorites ----------- Power None Propulsion Light Treads Treads Light Treads Flight Unit Biomechanical Wings Utility Improved Light Armor Plating Device Improved Maneuvering Thrusters Protection Improved Light Armor Plating Weapon Katana Ballistic Gun Light Assault Rifle Slashing Weapon Katana Build | -11 -10 -9 -8 -7 -7 -6 -5 ------- Run | Scr Mat Mat Mat Fac Gar Fac Fac Slots Evolved . | . . . . . . . . Power . | . . . . . . . . Propulsion . | . . . . . . . . Utility . | . . . . . . . . Weapon . | . . . . . . . . Parts Attached 8 | 2 . . 2 . . 4 . Power . | . . . . . . . . Engine . | . . . . . . . . Core . | . . . . . . . . Reactor . | . . . . . . . . Propulsion 3 | 1 . . . . . 2 . Treads 1 | 1 . . . . . . . Leg . | . . . . . . . . Wheel . | . . . . . . . . Hover . | . . . . . . . . Flight 2 | . . . . . . 2 . Utility 2 | . . . 1 . . 1 . Device 1 | . . . . . . 1 . Storage . | . . . . . . . . Processor . | . . . . . . . . Hackware . | . . . . . . . . Protection 1 | . . . 1 . . . . Artifact . | . . . . . . . . Weapon 3 | 1 . . 1 . . 1 . Energy Gun . | . . . . . . . . Energy Cannon . | . . . . . . . . Ballistic Gun 1 | 1 . . . . . . . Ballistic Cannon . | . . . . . . . . Launcher . | . . . . . . . . Special Weapon . | . . . . . . . . Impact Weapon . | . . . . . . . . Slashing Weapon 2 | . . . 1 . . 1 . Piercing Weapon . | . . . . . . . . Special Melee Weapon . | . . . . . . . . Unidentified Prototypes 1 | . . . . . . 1 . Parts Lost . | . . . . . . . . Power . | . . . . . . . . Propulsion . | . . . . . . . . Utility . | . . . . . . . . Weapon . | . . . . . . . . Highest Loss Streak . | . . . . . . . . Average Slot Usage (%) 69 | . 50 50 75 75 75 75 75 Treads 15 | . 25 25 25 25 25 1 . Flight 9 | . . . . . . 23 25 Device 7 | . . . . . . 16 25 Protection 12 | . . . 25 25 25 8 . Ballistic Gun 5 | . 25 25 . . . . . Slashing Weapon 19 | . . . 25 25 25 25 25 Naked Turns . | . . . . . . . . Heaviest Build 5 | 1 1 1 5 5 5 5 5 Greatest Support 13 | 3 3 8 8 8 8 13 13 Greatest Overweight (x) . | . . . . . . . . Average Overweight (x) . | . . . . . . . . Largest Inventory Capacity . | . . . . . . . . Average Capacity . | . . . . . . . . Most Carried . | . . . . . . . . Average Carried . | . . . . . . . . Final Capacity . | . . . . . . . . Final Carried . | . . . . . . . . Class Distribution -------------------- 100% | Hacker-Mutant Dominant Class ---------------- Hacker-Mutant | -10/Materials Hacker-Mutant | -9/Materials Hacker-Mutant | -8/Materials Hacker-Mutant | -7/Factory Hacker-Mutant | -7/Garrison Hacker-Mutant | -6/Factory Hacker-Mutant | -5/Factory Resources | -11 -10 -9 -8 -7 -7 -6 -5 ----------- Run | Scr Mat Mat Mat Fac Gar Fac Fac Matter Collected 274 | 210 24 . . 20 . 20 . Remotely . | . . . . . . . . Salvage Created 220 | . 48 . . 52 . 120 . Parts 10 | . 3 . . 3 . 4 . Haulers Intercepted 2 | . 1 . . . . 1 . Recyclers Shooed . | . . . . . . . . Parts Field Recycled . | . . . . . . . . Retrieved Matter . | . . . . . . . . Parts Self-Destructed . | . . . . . . . . Prevented . | . . . . . . . . Kills | -11 -10 -9 -8 -7 -7 -6 -5 ------- Run | Scr Mat Mat Mat Fac Gar Fac Fac Combat Hostiles Destroyed 1 | . . . . . . 1 . Melee 1 | . . . . . . 1 . Classes Destroyed 4 | . 1 . . 2 . 1 . Worker 1 | . . . . 1 . . . Hauler 2 | . 1 . . . . 1 . Operator 1 | . . . . 1 . . . Sentry 1 | . . . . . . 1 . Best Kill Streak 1 | . 1 . . 1 . 1 . Combat Bots Only 1 | . . . . . . 1 . Max Kills in Single Turn 1 | . 1 . . 1 . 1 . Gunslinging . | . . . . . . . . Exploded . | . . . . . . . . Melee 1 | . . . . . . 1 . Uniques/NPCs Destroyed . | . . . . . . . . Combat | -11 -10 -9 -8 -7 -7 -6 -5 -------- Run | Scr Mat Mat Mat Fac Gar Fac Fac Damage Taken 1327 | . 47 326 . . 469 237 248 Core 1153 | . 38 284 . . 384 213 234 Absorbed by Shields 42 | . . . . . 42 . . Redirected to Core 565 | . 28 134 . . 267 85 51 Core Remaining (%) 59 | 100 93 54 67 . 22 21 . Volleys Fired 14 | . 14 . . . . . . Largest 1 | . 1 . . . . . . Hottest 20 | . 20 . . . . . . Shots Fired 14 | . 14 . . . . . . Gun 14 | . 14 . . . . . . Cannon . | . . . . . . . . Launcher . | . . . . . . . . Special . | . . . . . . . . Kinetic 14 | . 14 . . . . . . Thermal . | . . . . . . . . Explosive . | . . . . . . . . Electromagnetic . | . . . . . . . . Robot Hit Streak 3 | . 3 . . . . . . Robot Miss Streak 4 | . 4 . . . . . . Penetration Max . | . . . . . . . . Secondary Targets . | . . . . . . . . Shots Hit Robots 19 | . 7 . . 4 . 6 2 Core Hits 8 | . 3 . . 2 . 3 . Critical Hits . | . . . . . . . . Critical Kills . | . . . . . . . . Critical Parts Destroyed . | . . . . . . . . Melee Attacks 27 | . . . 8 5 . 9 5 Impact . | . . . . . . . . Slashing 27 | . . . 8 5 . 9 5 Piercing . | . . . . . . . . Sneak Attacks 2 | . . . . 1 . 1 . Combat Hostiles . | . . . . . . . . Follow-up Attacks . | . . . . . . . . Damage Inflicted 647 | . 52 . . 218 . 289 88 Guns 52 | . 52 . . . . . . Cannons . | . . . . . . . . Explosions . | . . . . . . . . Melee 595 | . . . . 218 . 289 88 Ramming . | . . . . . . . . Kinetic 52 | . 52 . . . . . . Thermal . | . . . . . . . . Explosive . | . . . . . . . . Electromagnetic . | . . . . . . . . Impact . | . . . . . . . . Slashing 595 | . . . . 218 . 289 88 Piercing . | . . . . . . . . Highest Corruption 2 | . . . . . . 2 . Average Corruption 2 | . . . . . . 2 . Corruption Purged . | . . . . . . . . Effects 1 | . . . . . . 1 . Heat Flow Errors 1 | . . . . . . 1 . Overload Shots . | . . . . . . . . Overflow Damage 112 | . . . . 65 . 37 10 Projectiles . | . . . . . . . . Explosions . | . . . . . . . . Melee 112 | . . . . 65 . 37 10 Knockbacks . | . . . . . . . . Impact . | . . . . . . . . Kinetic . | . . . . . . . . Secondary . | . . . . . . . . Self-Inflicted Damage . | . . . . . . . . Shots . | . . . . . . . . Rammed . | . . . . . . . . Targets Rammed . | . . . . . . . . Kicked . | . . . . . . . . Crushed . | . . . . . . . . Highest Temperature 162 | . . . . . 1 162 . Average Temperature 77 | . . . . . 1 87 . Received Heat Transfer 364 | . 18 117 . . 133 87 9 Siege Activations . | . . . . . . . . Robots Corrupted . | . . . . . . . . Combat Hostiles . | . . . . . . . . Parts Fried . | . . . . . . . . Impact Corruptions . | . . . . . . . . Robots Melted . | . . . . . . . . Combat Hostiles . | . . . . . . . . Parts Melted . | . . . . . . . . Heat Transferred . | . . . . . . . . Parts Sabotaged . | . . . . . . . . Parts Stolen . | . . . . . . . . Parts Stripped . | . . . . . . . . Power Chain Reactions . | . . . . . . . . Missiles Intercepted . | . . . . . . . . Alert | -11 -10 -9 -8 -7 -7 -6 -5 ------- Run | Scr Mat Mat Mat Fac Gar Fac Fac Peak Influence 91 | . 59 24 30 38 47 91 66 Average Influence 29 | . 31 24 20 19 44 34 32 Maximum Alert Level . | . . . . . . . . Low Security (%) 100 | 100 100 100 100 100 100 100 100 Level 1 . | . . . . . . . . Level 2 . | . . . . . . . . Level 3 . | . . . . . . . . Level 4 . | . . . . . . . . Level 5 . | . . . . . . . . High Security . | . . . . . . . . Max Security . | . . . . . . . . Squads Dispatched 6 | . 2 1 . 1 . 2 . Investigation 2 | . . 1 . . . 1 . Extermination . | . . . . . . . . Reinforcement 4 | . 2 . . 1 . 1 . Assault . | . . . . . . . . Garrison . | . . . . . . . . Intercept . | . . . . . . . . Construction Impeded . | . . . . . . . . Haulers Reinforced 1 | . . . . . . 1 . Stealth | -11 -10 -9 -8 -7 -7 -6 -5 --------- Run | Scr Mat Mat Mat Fac Gar Fac Fac Distress Signals 3 | . 2 . . 1 . . . Communications Jammed . | . . . . . . . . Distress Signals . | . . . . . . . . Times Spotted 45 | . 12 10 1 2 6 7 7 Peak Tracking Total 10 | . 8 10 2 2 6 6 7 Tactical Retreats 5 | . 2 . . . 1 2 . Traps | -11 -10 -9 -8 -7 -7 -6 -5 ------- Run | Scr Mat Mat Mat Fac Gar Fac Fac Traps Triggered 2 | . . . . . 1 1 . Indirectly . | . . . . . . . . Trap Hack Attempts . | . . . . . . . . Triggered . | . . . . . . . . Disarmed . | . . . . . . . . Reprogrammed . | . . . . . . . . Reused . | . . . . . . . . Traps Extracted . | . . . . . . . . Installed . | . . . . . . . . Triggered . | . . . . . . . . Machines | -11 -10 -9 -8 -7 -7 -6 -5 ---------- Run | Scr Mat Mat Mat Fac Gar Fac Fac Machines Disabled . | . . . . . . . . Max in Single Turn . | . . . . . . . . Garrison Access 1 | . . . . . . . 1 Machines Sabotaged . | . . . . . . . . Garrisons Compromised . | . . . . . . . . Overloaded Fab Kills . | . . . . . . . . Fab Network Shutdowns . | . . . . . . . . Hacking | -11 -10 -9 -8 -7 -7 -6 -5 --------- Run | Scr Mat Mat Mat Fac Gar Fac Fac Machines Accessed 10 | . 1 1 1 2 . 4 1 Terminals 7 | . 1 1 1 1 . 3 . Fabricators 1 | . . . . . . 1 . Repair Stations . | . . . . . . . . Recycling Units . | . . . . . . . . Scanalyzers . | . . . . . . . . Garrison Access 2 | . . . . 1 . . 1 Total Hacks 23 | . 3 2 2 4 . 11 1 Successful 13 | . 3 . 2 1 . 6 1 Failed 10 | . . 2 . 3 . 5 . Catastrophic 4 | . . 1 . 1 . 2 . Database Lockouts . | . . . . . . . . Manual 17 | . 2 2 2 3 . 8 . Terminals 20 | . 3 2 2 3 . 10 . Fabricators 1 | . . . . . . 1 . Repair Stations . | . . . . . . . . Recycling Units . | . . . . . . . . Scanalyzers . | . . . . . . . . Garrison Access 2 | . . . . 1 . . 1 Terminal Hacks 8 | . 2 . 1 . . 5 . Robot Schematic 2 | . . . . . . 2 . Level Access Points 3 | . 1 . 1 . . 1 . Unreport Threat 2 | . . . . . . 2 . Locate Traps 1 | . 1 . . . . . . Fabricator Hacks 1 | . . . . . . 1 . Build 1 | . . . . . . 1 . Repair Station Hacks . | . . . . . . . . Recycling Unit Hacks . | . . . . . . . . Scanalyzer . | . . . . . . . . Garrison Access Hacks 2 | . . . . 1 . . 1 Unlock Access 1 | . . . . 1 . . . Seal Access 1 | . . . . . . . 1 Unauthorized Hacks 4 | . 2 . 2 . . . . Terminals 2 | . 1 . 1 . . . . Disrupt 1 | . 1 . . . . . . Operators 1 | . . . 1 . . . . Fabricators . | . . . . . . . . Repair Stations . | . . . . . . . . Recycling Units . | . . . . . . . . Scanalyzers . | . . . . . . . . Garrison Access . | . . . . . . . . Data Cores Recovered . | . . . . . . . . Used . | . . . . . . . . Hacking Detections 6 | . 1 1 1 2 . 1 . Full Trace Events 2 | . . 1 . . . 1 . Feedback Events . | . . . . . . . . Feedback Blocked . | . . . . . . . . Robot Schematics Acquired 2 | . . . . . . 2 . Robots Built 4 | . . . . . . 4 . Matter 252 | . . . . . . 252 . Time 67 | . . . . . . 67 . Total Robot Build Rating 16 | . . . . . . 16 . Part Schematics Acquired . | . . . . . . . . Parts Built . | . . . . . . . . Matter . | . . . . . . . . Time . | . . . . . . . . Total Part Build Rating . | . . . . . . . . Parts Repaired . | . . . . . . . . Time . | . . . . . . . . Parts Recycled . | . . . . . . . . Recycled Matter . | . . . . . . . . Retrieved Matter . | . . . . . . . . Retrieved Components . | . . . . . . . . Parts Scanalyzed . | . . . . . . . . Part Schematics Acquired . | . . . . . . . . Parts Damaged . | . . . . . . . . Bothacking | -11 -10 -9 -8 -7 -7 -6 -5 ------------ Run | Scr Mat Mat Mat Fac Gar Fac Fac Used RIF Installer . | . . . . . . . . Robots Hacked . | . . . . . . . . Non-combat . | . . . . . . . . Combat . | . . . . . . . . Robot Hacks Applied . | . . . . . . . . Relay Couplers Released . | . . . . . . . . Robots Rewired 1 | . . . . 1 . . . Allies Hacked . | . . . . . . . . Hacks Repelled . | . . . . . . . . Allies | -11 -10 -9 -8 -7 -7 -6 -5 -------- Run | Scr Mat Mat Mat Fac Gar Fac Fac Total Allies 5 | . . . . 1 . 4 . Largest Group 4 | . . . . 1 . 4 . Highest-Rated Group 48 | . . . . 32 . 48 . Highest-Rated Ally 32 | . . . . 32 . 12 . Total Orders . | . . . . . . . . Ally Attacks 16 | . . . . . . 16 . Total Damage 196 | . . . . . . 196 . Kills . | . . . . . . . . Allies Corrupted . | . . . . . . . . Allies Melted . | . . . . . . . . Intel | -11 -10 -9 -8 -7 -7 -6 -5 ------- Run | Scr Mat Mat Mat Fac Gar Fac Fac Robot Analysis Total . | . . . . . . . . Derelict Logs Recovered . | . . . . . . . . Drone Launches . | . . . . . . . . Drone Recoveries . | . . . . . . . . Exploration | -11 -10 -9 -8 -7 -7 -6 -5 ------------- Run | Scr Mat Mat Mat Fac Gar Fac Fac Turns Passed 613 | 12 85 52 61 112 63 181 47 Spaces Moved 1036 | 19 115 99 74 189 107 347 86 Core 627 | 19 115 99 74 189 107 24 . Treads . | . . . . . . . . Legs . | . . . . . . . . Wheels . | . . . . . . . . Hover . | . . . . . . . . Flight 409 | . . . . . . 323 86 Fastest Speed 40 | 50 50 50 50 50 50 40 40 Average Speed 46 | 50 50 50 50 50 50 40 40 Slowest Speed 50 | 50 50 50 50 50 50 50 40 Overloaded Moves . | . . . . . . . . Propulsion Burnouts . | . . . . . . . . Robots Hopped 5 | . . . . . . 4 1 Cave-ins Triggered . | . . . . . . . . Exploration Rate (%) 15 | 3 37 15 10 10 31 11 4 Regions Visited 7 Branch Regions . Pre-discovered Areas . | . . . . . . . . Known Exits Taken 4 | . 1 . 1 1 . 1 . Unknown Exits Taken 2 | 1 . 1 . . . . . Scrap Searched . | . . . . . . . . Spaces Dug 12 | . . . 8 . . 3 1 Terrain Destroyed 12 | . . . 8 . . 3 1 Melee 12 | . . . 8 . . 3 1 Projectile . | . . . . . . . . AOE . | . . . . . . . . Actions | -11 -10 -9 -8 -7 -7 -6 -5 --------- Run | Scr Mat Mat Mat Fac Gar Fac Fac Total 1105 | 20 130 100 84 198 115 368 90 Wait 3 | . 2 . . 1 . . . Move 1020 | 18 114 98 73 189 106 338 84 Hop 5 | . . . . . . 4 1 Pick Up . | . . . . . . . . Fast Attach 8 | 2 . . 2 . . 4 . Attach . | . . . . . . . . Detach . | . . . . . . . . Swap . | . . . . . . . . Drop 5 | . . . 1 . . 4 . Fire 14 | . 14 . . . . . . Melee 27 | . . . 8 5 . 9 5 Ram . | . . . . . . . . Kick . | . . . . . . . . Crush . | . . . . . . . . Escape Stasis 9 | . . . . . 9 . . Rewire 3 | . . . . 3 . . . Trap . | . . . . . . . . Miscellaneous 11 | . . 2 . . . 9 . Route ------- -11/Scrapyard -10/Materials (discovered 3 exits: *Mat x3) -9/Materials -8/Materials (discovered 3 exits: *Fac x3) -7/Factory -7/Garrison -6/Factory (discovered 4 exits: *Fac x4) -5/Factory History --------- Turn | Location | Event 7 | -11/Scrapyard | Discovered new exit (range 14) 13 | -11/Scrapyard | Entered Materials 60 | -10/Materials | Identified exit to Materials 98 | -10/Materials | Entered another Materials area 100 | -9/Materials | Reached level 2 145 | -9/Materials | Discovered new exit (range 4) 150 | -9/Materials | Entered another Materials area 152 | -8/Materials | Reached level 3 174 | -8/Materials | Identified exit to Factory 211 | -8/Materials | Entered Factory 213 | -7/Factory | Reached level 4 313 | -7/Factory | Build established: Hacker-Mutant 323 | -7/Factory | Identified exit to Garrison 323 | -7/Factory | Entered Garrison 332 | -7/Garrison | Triggered checkpoint 345 | -7/Garrison | Core integrity fell below 50% 370 | -7/Garrison | Triggered checkpoint 381 | -7/Garrison | Discovered new exit (range 10) 386 | -7/Garrison | Entered Factory 387 | -6/Factory | Core integrity fell below 50% 388 | -6/Factory | Reached level 5 449 | -6/Factory | Core integrity fell below 20% 480 | -6/Factory | Fabricated S-27 Virus? 512 | -6/Factory | Identified exit to Factory 567 | -6/Factory | Entered another Factory area 568 | -5/Factory | Core integrity fell below 50% 569 | -5/Factory | Reached level 6 607 | -5/Factory | Core integrity fell below 20% 614 | -5/Factory | Destroyed by H-66 Slayer with Gauss Rifle Last Messages --------------- >>Schematic(L-41 Fighter) Downloading schematic... L-41 Fighter Tier: 4 Schematic downloaded. LOCATION=FACTORY GOAL=ESCAPE 00569_ Reached level 6. 00569_ Upgraded: Core Integrity (+50) 00569_ Upgraded: Hack Attack % (+5) 00575_ Connecting with Garrison Access... >>Seal Access door sealed. 00584_ K-01 Serf collects debris. 00603_ Penetrated by Slug. 00603_ Slug penetrates Wall. 00606_ Penetrated by Slug. 00607_ Slug penetrates Wall. 00611_ Penetrated by Slug. 00612_ Destroyed Phase Shifter. Map ----- +----------------------------------------------------+ | ?????????????????????????????????????????????????? | | ?????????????????????????????????????????????????? | | ?????????????????????????????????????????????????? | | ?????????????????????????????????????????????????? | | ?????????????????????????????????????????????????? | | ?????????????????????????????????????????????????? | | ?????????????????????????????????????????????????? | | ?????????????????????????????????????????????????? | | ?????????????????????????????????????????????????? | | ?????????????????????????Y???????????????????????? | | ????????????????????????? ???????????????????????? | | ????????????????????????? ???????????????????????? | | ????????????????????????? ???????????????????????? | | ????????????????????????? ???????????????????????? | | ????????????????????????? ???????????????????????? | | ????????????????????????? ???????????????????????? | | ????????????????????????# #??????????????????????? | | ????????????????????????#h#??????????????????????? | | ????????????????????????# #??????????????????????? | | ????????????????????????# #??????????????????????? | | ????????????????????????# #??????????????????????? | | ????????????????????????# #??????????????????????? | | ????????????????????????# #??????????????????????? | | ????????????????????????# #??????????????????????? | | ???????????????#????????# #??????????????????????? | | ???????????????# ########@#??????????????????????? | | ???????????????# h #??????????????????????? | | ???????????????# ####??????????????????????? | | ???????????????# #?????????????????????????? | | ???????????????# ##????????????????????????? | | ???????????????# "#########????????????????? | | ???????????????#"" # #????????????????? | | ???????????????#"Y # """ #????????????????? | | ???????????????#"" # """ #????????????????? | | ???????????????# ?[ # """ #????????????????? | | ???????????????# # #????????????????? | | ???????????????#### # """ #????????????????? | | ??????????????????# # """ #????????????????? | | ??????????????????# # """ #????????????????? | | ??????????????????# # !#????????????????? | | ??????????????????# #####+####????????????????? | | ??????????? ! #??????????##???????? | | ??????????????????#+######## #?????????? ????? #? | | ???????????????????????????# #??????????" ???? #? | | ???????????????????????????# #?????????"" ???? #? | | ???????????????????????????# #?????# ??"" """ [ #? | | ?????????????????????????### ###???# #? | | ?????????????????????????# #???# """ """ #? | | ?????????????????????????# #???# """ """ #? | | ?????????????????????????# #???# """ """ #? | +----------------------------------------------------+ Best States ------------- Heat Dissipation 25 Energy Generation 10 Energy Capacity 100 Matter Stores 300 Matter Capacity 300 Sight Range 17 Robot Scan Range 30 Terrain Scan Density 10 Armor Coverage 150 Evasion (%) 72 Offensive Hacking 35 Defensive Hacking 10 Item Schematics ----------------- None Robot Schematics ------------------ Y-54 Guardian | -6/Factory | Hacked L-41 Fighter | -6/Factory | Hacked Fabricated ------------ S-27 Virus | x4 | -6/Factory | Preloaded Alien Tech Used ----------------- None Achievements -------------- None Challenges ------------ None RPGLIKE | -11 -10 -9 -8 -7 -7 -6 -5 --------- Run | Scr Mat Mat Mat Fac Gar Fac Fac Levels Raised 5 | . . 1 1 1 . 1 1 XP Earned 11515 | 3000 70 1500 1500 1540 600 1805 1500 XP Spent 10475 | 2925 . 1500 1575 1500 . 1500 1475 Upgrades 33 | 9 . 8 9 3 . 2 2 Core Integrity 6 | . . . 5 . . . 1 Energy Generation 1 | . . . . . . 1 . Mass Support 1 | . . 1 . . . . . Sight Range 1 | . . . . 1 . . . Sensor Range 15 | 3 . 7 4 1 . . . Hack Attack % 7 | 4 . . . 1 . 1 1 Hack Defense % 2 | 2 . . . . . . . Protomatter Created 68 | . . . . . . 68 . Integrity Restored 252 | . . 48 . . . 204 . Core 252 | . . 48 . . . 204 . Protomatter Decayed . | . . . . . . . . Game ------ Seed DefenseGravmagCompressor Manual? 0 Play Time 00:10:41 Cumulative 429.1 hours Start 2019.12.20 @ 01:23:52 End 2019.12.20 @ 01:33:48 Sessions 1 Manual Loads 0 Difficulty Rogue Special Mode Winter2019/RPGLIKE Game No. 324 Rogue 320 Adventurer 4 Explorer 0 Win Type - Total 36 Types 28/3/1/2/2/0/0 Lore% 93 Gallery% 94 Achievement% 90 Wizard Run 0 Options --------- ASCII 0 Keyboard 1 Movement Vi Keybinds 0 Fullscreen 0 Font 16/Terminus Map View 76x50 Tactical HUD 1 Map Filters NONE Filters NONE Steam 1 RUN: 08ac2088-7154-4105-a737-cb55719e31ec